[Event "Polish Youth B18 Championship 2023"]
[Site "Jastrzebia Gora"]
[Date "2023.03.12"]
[Round "1.1"]
[White "Stachecki, Mikolaj"]
[Black "Turski, Bartlomiej"]
[Result "0-1"]
[ECO "A04"]
[WhiteElo "2015"]
[BlackElo "2352"]
[Annotator "TA"]
[PlyCount "88"]
[EventDate "2023.03.11"]
[EventType "swiss"]
[EventCountry "POL"]
[SourceTitle "playchess.com"]
[Source "ChessBase"]
[SourceQuality "1"]
[TimeControl "40/5400+30:1800+30"]

{[%evp 14,88,0,0,29,31,42,29,26,33,36,29,63,31,29,8,13,0,8,6,12,15,22,0,0,0,0,-11,-16,-11,-14,-10,-7,-16,-16,-90,-88,-136,-145,-145,-143,-129,-137,-140,-115,-116,-115,-255,-72,-82,-76,-84,-67,-74,-54,-52,0,-62,-35,-40,-41,-31,-36,-39,-27,-212,-228,-227,-206,-220,-206,-530,-497,-2894,-1597,-12837,-12836]} 1. Nf3 {[%emt 0:00:20]} c5 {[%emt 0:01:18]} 2. c4 {[%emt 0:00:14]} Nf6 {[%emt 0:01:14]} 3. Nc3 {[%emt 0:04:43]} e6 {[%emt 0:02:53]} 4. e3 {[%emt 0:04:01]} b6 {[%emt 0:04:42]} 5. b3 {[%emt 0:04:02]} Bb7 {[%emt 0:01:49]} 6. Bb2 {[%emt 0:00:52]} Be7 {[%emt 0:01:49]} 7. Be2 {[%emt 0:01:35]} O-O {[%emt 0:01:28]} 8. O-O {[%emt 0:00:16]} a6 {[%emt 0:00:54] A30: Symmetrical English: Double Fianchetto and Hedgehog.} 9. d4 {[%emt 0:03:19]} cxd4 {[%emt 0:03:56]} 10. Nxd4 {[%emt 0:01:32]} Qc7 {[%emt 0:05:47] White has an edge.} 11. Rc1 {[%emt 0:12:08] [#]} Re8 $146 {[%emt 0:06:16]} ({Predecessor:} 11... d6 12. Bd3 Nbd7 13. Bb1 Rac8 14. Qe1 Qb8 15. f4 Rfe8 16. Qg3 Bf8 17. a4 Qa8 {0-1 Gunina,V (2531)-Goryachkina,A (2474) RUS-ch (Women) 65th 2015 (1)}) 12. Bf3 {[%emt 0:11:37]} Bf8 {[%emt 0:21:55]} 13. Bxb7 {[%emt 0:09:03]} Qxb7 {[%emt 0:00:13]} 14. Qf3 {[%emt 0:00:07]} Qxf3 {[%emt 0:03:07]} 15. Nxf3 {[%emt 0:00:42]} Nc6 {[%emt 0:00:56]} 16. Rfd1 {[%emt 0:02:26]} Reb8 {[%emt 0:02:51]} 17. Ne2 {[%emt 0:12:40]} Rb7 {[%emt 0:04:12]} 18. Ne5 {[%emt 0:01:35]} Nxe5 {[%emt 0:06:14]} 19. Bxe5 {[%emt 0:00:04]} b5 {[%emt 0:00:52]} 20. Rd2 {[%emt 0:08:26]} Ne4 {[%emt 0:07:12]} 21. Rd4 {[%emt 0:05:22]} f5 {[%emt 0:02:04]} 22. f3 {[%emt 0:01:53]} d6 {[%emt 0:07:15]} 23. Bg3 {[%emt 0:06:37]} Nxg3 {[%emt 0:01:04]} 24. Nxg3 {[%emt 0:01:41]} (24. hxg3 $11 {keeps the balance.} Rc8 25. g4) 24... Rc8 $17 {[%emt 0:01:18]} 25. Re1 {[%emt 0:01:40]} (25. Ne2 $142) 25... bxc4 {[%emt 0:01:19]} 26. Rxc4 {[%emt 0:00:41]} Rxc4 {[%emt 0:00:55]} 27. bxc4 {[%emt 0:00:04][%mdl 4096] Endgame KRB-KRN} Rb4 {[%emt 0:00:40]} 28. e4 {[%emt 0:00:58]} fxe4 {[%emt 0:03:38]} 29. Rxe4 {[%emt 0:01:26]} Kf7 {[%emt 0:00:43]} 30. Ne2 {[%emt 0:00:34] [#]} (30. Rf4+ $17 Ke7 31. Re4) 30... Rb1+ $2 {[%emt 0:00:54]} (30... d5 $1 $19 31. Rf4+ Kg8) 31. Kf2 {[%emt 0:00:06]} Rb2 {[%emt 0:00:10]} 32. a3 {[%emt 0:00:42]} Ra2 {[%emt 0:00:51]} 33. Rf4+ {[%emt 0:02:06]} Ke8 {[%emt 0:00:57] Black is more active.} 34. Re4 {[%emt 0:00:16]} Kf7 {[%emt 0:03:21]} 35. Rf4+ $1 {[%emt 0:00:04]} Ke7 {[%emt 0:00:09]} 36. c5 {[%emt 0:00:43]} d5 {[%emt 0:02:37]} (36... Rxa3 $2 37. cxd6+ Ke8 38. d7+ Kxd7 39. Rxf8 $18) 37. Ra4 $1 {[%emt 0:02:12]} Kd7 {[%emt 0:00:14]} 38. Ra5 {[%emt 0:02:12]} Rc2 {[%emt 0:01:10]} 39. Rxa6 $2 {[%emt 0:00:24]} (39. Ke3 $11) 39... Bxc5+ $19 {[%emt 0:00:17]} ({Inferior is} 39... Rxc5 40. Nd4 $11) 40. Ke1 {[%emt 0:00:00]} Be3 {[%emt 0:00:00] [#] White must now prevent ...d4.} 41. Ra4 {[%emt 0:03:40]} e5 {[%emt 0:06:01] Hoping for ...d4.} 42. f4 $2 {[%emt 0:05:15]} (42. Ra5 Kc6 43. a4) 42... d4 {[%emt 0:04:45][%cal Bd5d4,Bd4d3][%mdl 32] ( -> ...d3). Black is clearly winning.} 43. fxe5 {[%emt 0:01:17]} (43. Ra5 $142 Ra2 44. Kd1 exf4 45. Nxd4 Rd2+ 46. Ke1 Rxd4 47. Ra7+ Ke6 48. Rxg7) 43... d3 {[%emt 0:00:58]} 44. e6+ {[%emt 0:00:54]} Ke7 {Weighted Error Value: White=0.59/Black=0.13 (very precise)} ({Weaker is} 44... Kxe6 45. Re4+ Kd6 46. Rxe3 $14) 0-1

[Event "Polish Youth B18 Championship 2023"]
[Site "Jastrzebia Gora"]
[Date "2023.03.12"]
[Round "1.2"]
[White "Karolczuk, Iwo"]
[Black "Syrkiewicz, Michal"]
[Result "1-0"]
[ECO "B42"]
[WhiteElo "2346"]
[BlackElo "2000"]
[Annotator "TA"]
[PlyCount "67"]
[EventDate "2023.03.11"]
[EventType "swiss"]
[EventCountry "POL"]
[SourceTitle "playchess.com"]
[Source "ChessBase"]
[SourceQuality "1"]
[TimeControl "40/5400+30:1800+30"]

{[%evp 13,66,33,35,-9,-9,-15,-24,-16,8,-4,37,40,40,25,40,4,13,0,0,-21,-8,-34,-10,-27,26,19,50,52,53,52,63,56,96,89,89,85,203,202,198,162,165,169,216,192,291,283,1175,1175,1045,1044,881,856,29997,29998,29999]} 1. e4 {[%emt 0:00:06]} c5 {[%emt 0:00:17]} 2. Nf3 {[%emt 0:00:07]} e6 {[%emt 0:01:16]} 3. d4 {[%emt 0:00:06]} cxd4 {[%emt 0:00:05]} 4. Nxd4 {[%emt 0:00:04]} a6 {[%emt 0:02:10]} 5. Bd3 {[%emt 0:00:06]} Nc6 {[%emt 0:02:08]} 6. Nxc6 {[%emt 0:00:07]} dxc6 {[%emt 0:00:10] 6...dxc6 scores better than 6...bxc6.} 7. Nd2 {[%emt 0:00:11]} Qc7 {[%emt 0:03:56]} 8. Nc4 {[%emt 0:04:29] B42: Sicilian: Kan Variation: 5 Bd3.} b5 {[%emt 0:09:52]} 9. Ne3 {[%emt 0:00:44]} Nf6 {[%emt 0:03:15]} 10. a4 {[%emt 0:08:28] Black has an edge.} Rb8 {[%emt 0:05:45]} 11. O-O {[%emt 0:12:35]} e5 {[%emt 0:08:33]} 12. axb5 {[%emt 0:08:11]} axb5 {[%emt 0:03:39]} 13. Qf3 {[%emt 0:12:21]} Bc5 {[%emt 0:06:51] [#]} 14. h3 $146 {[%emt 0:03:10]} ({Predecessor:} 14. Nf5 Bxf5 15. exf5 O-O 16. Bg5 Be7 17. Bxf6 Bxf6 18. Be4 c5 19. g3 Rfd8 20. Rfd1 Rd4 21. c3 {½-½ Donoso Velasco,P-Najdorf,M Match/Nation CHI-ARG 1971 (2)}) 14... O-O {[%emt 0:04:01]} 15. g4 {[%emt 0:03:38]} h6 {[%emt 0:07:52]} 16. Ng2 {[%emt 0:03:50][%cal Oc1h6]} Nh7 {[%emt 0:05:11]} 17. Qg3 {[%emt 0:02:38]} Be6 {[%emt 0:05:36]} 18. Kh1 {[%emt 0:03:12]} g5 {[%emt 0:05:43]} (18... Ra8 $142 19. Be3 Bxe3 20. Nxe3 Rfd8) 19. Ne3 $11 {[%emt 0:02:46]} Ra8 {[%emt 0:04:50]} 20. Rxa8 {[%emt 0:01:15]} Rxa8 {[%emt 0:00:03]} 21. Nf5 {[%emt 0:00:36]} Bxf5 {[%emt 0:01:44]} 22. gxf5 {[%emt 0:00:46]} Kf8 {[%emt 0:00:56]} 23. h4 {[%emt 0:03:30][%cal Rh4g5]} f6 {[%emt 0:00:47]} 24. Be2 {[%emt 0:07:01]} Qf7 {[%emt 0:05:34] [#]} (24... Ra4 $16) 25. Qc3 $1 $18 {[%emt 0:01:01]} Qe7 {[%emt 0:02:36] [#]} 26. b4 $1 {[%emt 0:02:00][%mdl 512]} Bxb4 {[%emt 0:01:38]} 27. Qxc6 {[%emt 0:00:09] Black is weak on the light squares} Ra7 {[%emt 0:01:58]} (27... Qe8 {keeps fighting.} 28. Qb7 (28. Qxb5 Qxb5 29. Bxb5 Ke7 $16) (28. Bxb5 Qxc6 29. Bxc6 Ra2 $16) 28... Be7) 28. Qxb5 {[%emt 0:02:00] Be3 is the strong threat.} ({Resist} 28. Bxb5 $6 Rc7 29. Qd5 Qf7) 28... Rc7 {[%emt 0:01:20]} (28... Kg7 $142 29. hxg5 Nxg5) 29. Rd1 {[%emt 0:04:02] Qb8+ would be deadly.} Qc5 $2 {[%emt 0:03:33]} (29... Kg7 30. Be3 Nf8) 30. Rd8+ {[%emt 0:05:54]} Kg7 {[%emt 0:00:04]} 31. Qb8 {[%emt 0:01:27] White wants to mate with Rg8+.} ({Less strong is} 31. Qe8 Nf8 32. Be3 Qxc2 $14) 31... Nf8 {[%emt 0:00:17] [#]} 32. Rxf8 $1 {[%emt 0:01:44][%mdl 576] Deflection} Qxf2 {[%emt 0:02:23]} (32... Qxf8 33. Qxc7+) 33. Rg8+ {[%emt 0:00:08]} Kf7 {[%emt 0:00:04]} 34. Qe8# {[%emt 0:00:36] Excellently played by Karolczuk!   Weighted Error Value: White=0.12 (very precise) /Black=0.54} 1-0

[Event "Polish Youth B18 Championship 2023"]
[Site "Jastrzebia Gora"]
[Date "2023.03.12"]
[Round "1.3"]
[White "Kitewski, Bartosz"]
[Black "Luczak, Filip"]
[Result "1/2-1/2"]
[ECO "A10"]
[WhiteElo "1968"]
[BlackElo "2345"]
[Annotator "TA"]
[PlyCount "63"]
[EventDate "2023.03.11"]
[EventType "swiss"]
[EventCountry "POL"]
[SourceTitle "playchess.com"]
[Source "ChessBase"]
[SourceQuality "1"]
[TimeControl "40/5400+30:1800+30"]

{[%evp 15,63,10,20,-5,-16,-16,5,7,35,29,34,36,32,43,32,6,6,6,6,15,14,11,18,0,0,0,0,0,0,0,0,0,0,0,0,0,0,-13,0,0,0,0,0,0,0,0,0,0,25,10]} 1. c4 {[%emt 0:00:03]} g6 {[%emt 0:00:27]} 2. Nc3 {[%emt 0:00:28]} Bg7 {[%emt 0:00:04]} 3. g3 {[%emt 0:00:06]} d6 {[%emt 0:02:55]} 4. Bg2 {[%emt 0:00:11]} Nc6 {[%emt 0:00:30]} 5. e4 {[%emt 0:01:26]} e5 {[%emt 0:04:42]} 6. Nge2 {[%emt 0:00:49]} f5 {[%emt 0:03:05]} 7. d3 {[%emt 0:01:09][%cal Bd2d3,Bd3d4,Bd4d5][%mdl 32]} Nf6 {[%emt 0:00:58]} 8. O-O {[%emt 0:01:18]} O-O {[%emt 0:00:07][%cal Of5f4]} 9. exf5 {[%emt 0:04:56] A26: English Opening vs King's Indian with ...Nc6 and d3.} Bxf5 {[%emt 0:02:34]} 10. d4 {[%emt 0:01:49]} Qd7 {[%emt 0:05:21]} 11. d5 {[%emt 0:06:17] [#] The position is equal.} Nd8 $146 {[%emt 0:03:52][%cal Bc6d8,Bd8f7,Bf7h6,Bh6g4,Bg4f2][%mdl 32]} ({Predecessor:} 11... Ne7 12. Bg5 Rf7 13. Qd2 Raf8 14. Rad1 h5 15. h4 Nh7 16. f3 Nxg5 17. hxg5 Bh3 {½-½ Ptacnikova,L (2239)-Browne,W (2444) Reykjavik op 2014 (9)}) 12. f3 {[%emt 0:03:46] g4 is the strong threat.} h5 {[%emt 0:03:44]} 13. Be3 {[%emt 0:15:44]} Nf7 {[%emt 0:01:35]} 14. Qd2 {[%emt 0:00:39]} Kh7 {[%emt 0:08:17]} 15. Ne4 {[%emt 0:04:07]} Bxe4 {[%emt 0:12:31]} 16. fxe4 {[%emt 0:00:39]} Ng4 {[%emt 0:00:18]} 17. Bh3 {[%emt 0:06:32]} Bh6 {[%emt 0:01:22]} 18. Bxh6 {[%emt 0:06:49]} Nfxh6 {[%emt 0:00:07]} 19. Nc3 {[%emt 0:02:47]} Qe7 {[%emt 0:03:33]} 20. Rae1 {[%emt 0:09:00]} Kg7 {[%emt 0:03:11]} 21. Nd1 {[%emt 0:02:48]} b6 {[%emt 0:02:29]} 22. Bxg4 {[%emt 0:09:01]} Nxg4 {[%emt 0:00:24]} 23. Nf2 {[%emt 0:01:19]} Nxf2 {[%emt 0:07:24]} 24. Rxf2 {[%emt 0:00:12]} Rxf2 {[%emt 0:00:02]} 25. Qxf2 $11 {[%emt 0:00:20][%mdl 4096] Endgame KQR-KQR} Rf8 {[%emt 0:00:03]} 26. Qe2 {[%emt 0:01:02]} Qg5 {[%emt 0:00:18]} 27. Rf1 {[%emt 0:00:40]} Rxf1+ {[%emt 0:00:28]} 28. Kxf1 {[%emt 0:00:05]} Qc1+ {[%emt 0:00:52]} 29. Kg2 {[%emt 0:01:04]} a5 {[%emt 0:02:49]} 30. b3 {[%emt 0:01:08]} Qb1 {[%emt 0:06:28]} 31. h4 {[%emt 0:01:12]} Kf7 {[%emt 0:03:16]} 32. Qf1+ {[%emt 0:00:56] Weighted Error Value: White=0.04 (flawless) /Black=0.04 (flawless)} 1/2-1/2

[Event "Polish Youth B18 Championship 2023"]
[Site "Jastrzebia Gora"]
[Date "2023.03.12"]
[Round "1.4"]
[White "Dzida, Kamil"]
[Black "Jedraszek, Pawel"]
[Result "1-0"]
[ECO "C47"]
[WhiteElo "2333"]
[BlackElo "1944"]
[Annotator "TA"]
[PlyCount "115"]
[EventDate "2023.03.11"]
[EventType "swiss"]
[EventCountry "POL"]
[SourceTitle "playchess.com"]
[Source "ChessBase"]
[SourceQuality "1"]
[TimeControl "40/5400+30:1800+30"]

{[%evp 9,115,-22,-34,-20,-31,-15,-15,-20,-12,-89,-15,-9,25,-29,13,7,32,29,45,41,49,49,78,72,75,75,65,56,65,66,77,8,38,26,96,96,93,100,96,99,100,104,112,81,79,64,68,85,82,89,83,89,85,89,85,58,108,116,111,101,118,106,137,57,136,137,137,158,165,145,158,145,151,146,137,136,136,136,133,0,0,0,0,0,0,0,0,0,8,8,90,15,29974,418,265,259,251,258,2483,2254,29971,29972,29993,29994,29994,29995,29995,214]} 1. e4 {[%emt 0:00:01]} e5 {[%emt 0:00:11]} 2. Nf3 {[%emt 0:00:14]} Nc6 {[%emt 0:00:08]} 3. Nc3 {[%emt 0:05:24]} Nf6 {[%emt 0:00:15]} 4. a4 {[%emt 0:00:03]} Bb4 {[%emt 0:06:07]} 5. Nd5 {[%emt 0:04:47] [#]} Nxe4 $146 {[%emt 0:14:51]} ({Predecessor:} 5... Nxd5 6. exd5 e4 7. dxc6 exf3 8. Qxf3 dxc6 9. c3 Bd6 10. d4 O-O 11. Be3 Re8 {0-1 Kravtsiv,M (2598)-Andreikin,D (2729) Titled Tuesday intern op 30th Aug Early blitz 2022 (7)}) 6. Qe2 {[%emt 0:17:24] C47: Scotch Four Knights and Four Knights with 4 g3.} Nf6 {[%emt 0:01:03]} 7. Nxb4 {[%emt 0:01:27]} (7. Nxe5 O-O 8. Nxc6 dxc6 $17) 7... Nxb4 {[%emt 0:00:07]} 8. Qxe5+ {[%emt 0:00:35] The position is equal.} Qe7 {[%emt 0:04:10]} 9. Qxe7+ $1 {[%emt 0:01:30]} Kxe7 {[%emt 0:00:03]} 10. Nd4 {[%emt 0:00:08]} d6 {[%emt 0:08:45]} 11. d3 {[%emt 0:06:26]} (11. b3 $142 $1) 11... Re8 {[%emt 0:12:47]} 12. Bd2 {[%emt 0:06:20]} Nc6 {[%emt 0:01:26]} 13. Nxc6+ {[%emt 0:02:04]} bxc6 {[%emt 0:00:03]} 14. O-O-O {[%emt 0:07:39]} c5 {[%emt 0:04:25]} 15. Ba5 {[%emt 0:03:51]} Nd5 {[%emt 0:02:55]} 16. d4 {[%emt 0:05:38]} cxd4 {[%emt 0:04:17]} 17. Bb5 {[%emt 0:05:09][%cal Od1d4]} Bd7 {[%emt 0:01:49]} 18. Rxd4 {[%emt 0:00:21]} Bxb5 {[%emt 0:05:12]} 19. axb5 {[%emt 0:00:21]} (19. Rxd5 Bc6 20. Rd2 Rac8 $11) 19... Nb6 {[%emt 0:00:55]} 20. Bc3 {[%emt 0:00:18] White is more active.} (20. Kd2 $16) 20... f6 {[%emt 0:03:05]} 21. Kd2 {[%emt 0:03:44]} a6 {[%emt 0:00:48]} (21... Kf7 $11) 22. Re1+ $16 {[%emt 0:03:39]} Kf7 {[%emt 0:04:52]} 23. Rxe8 {[%emt 0:00:04]} Kxe8 {[%emt 0:00:51][%mdl 4096] Endgame KRB-KRN} 24. Ba5 {[%emt 0:03:11]} Kd7 {[%emt 0:01:01]} 25. Bxb6 {[%emt 0:05:51]} cxb6 {[%emt 0:00:02] KR-KR} 26. Rg4 {[%emt 0:04:51]} g6 {[%emt 0:01:41]} 27. Rf4 {[%emt 0:01:39]} f5 {[%emt 0:03:51]} 28. Rh4 {[%emt 0:00:02]} h5 {[%emt 0:00:43]} 29. Ra4 $1 {[%emt 0:00:01]} a5 {[%emt 0:00:46]} 30. Rc4 $1 {[%emt 0:00:01]} g5 {[%emt 0:02:31]} 31. Rc6 {[%emt 0:01:26]} Rb8 {[%emt 0:01:30]} 32. g3 {[%emt 0:01:03]} h4 {[%emt 0:03:01]} (32... g4 $14) 33. gxh4 {[%emt 0:00:52]} gxh4 {[%emt 0:00:02]} 34. h3 {[%emt 0:00:20]} Ke6 {[%emt 0:04:48]} 35. Ke3 {[%emt 0:00:09]} Ke5 {[%emt 0:00:55]} 36. c3 {[%emt 0:04:38]} (36. f4+ $16 Kd5 37. c4+ Ke6 38. Kd4) 36... Rb7 {[%emt 0:01:18]} ({Better is} 36... f4+ $14 37. Kf3 a4) 37. f4+ {[%emt 0:01:16]} Kd5 {[%emt 0:01:16]} 38. c4+ {[%emt 0:00:09]} Ke6 {[%emt 0:00:07]} 39. Kd4 {[%emt 0:00:05]} Rb8 {[%emt 0:03:24]} 40. Rc7 $1 {[%emt 0:00:00] Rg7 would be deadly.} Rg8 {[%emt 0:00:00] Against Rg7} 41. Rb7 $1 {[%emt 0:06:21]} Rg2 {[%emt 0:04:13]} 42. Rxb6 {[%emt 0:00:26] Threatens to win with c5.} Rxb2 {[%emt 0:01:59]} 43. c5 $1 {[%emt 0:03:05]} Rb4+ {[%emt 0:05:34]} 44. Kd3 {[%emt 0:00:10]} (44. Kc3 $16 Ke7 45. Rb7+ (45. Rxd6 Rxb5 46. Kd4 Rb3 $11) 45... Kd8 46. cxd6 Rxf4 47. Ra7) 44... Ke7 $11 {[%emt 0:06:08]} (44... Rxf4 $2 45. Rxd6+ Ke7 46. Ra6 $18) (44... Kd5 45. c6 Rd4+ 46. Kc2 $18) 45. c6 {[%emt 0:00:46] Black must now prevent c7.} Kd8 {[%emt 0:02:45]} 46. Rb7 {[%emt 0:07:07]} Kc8 $1 {[%emt 0:00:52]} 47. Kc3 {[%emt 0:00:51]} d5 {[%emt 0:00:45]} 48. Rd7 {[%emt 0:00:24]} Rxb5 {[%emt 0:01:27]} 49. Kd4 {[%emt 0:00:11][%cal Od4e5] Strongly threatening Ke5!} Rb1 {[%emt 0:09:34]} (49... Rb4+ $11 50. Ke5 d4) 50. Kc5 {[%emt 0:01:11]} (50. Kxd5 Rd1+ 51. Kc5 Rxd7 52. cxd7+ Kxd7 53. Kc4 Ke6 54. Kc5 a4 55. Kd4 a3 56. Kc3 Kd5 57. Kb3 Ke4 58. Kxa3 Kxf4 59. Kb2 Kg3 60. Kc3 Kxh3 61. Kd3 Kg3 62. Kd4 h3 63. Ke5 f4 64. Kf5 f3 65. Kf6 f2 66. Kf7 f1=Q+ 67. Ke7 h2 68. Ke6 h1=Q 69. Ke5 Qf4+ 70. Ke6 Qc6+ 71. Ke7 Qff6#) ({White should try} 50. Ra7 $16) 50... Kb8 $2 {[%emt 0:03:46][%mdl 8192] This move loses the game for Black.} (50... d4 $11) 51. Rg7 {[%emt 0:02:57]} (51. Kxd5 Rb3 $11) (51. Kd6 $142 Rb6 52. Rd8+ (52. Kxd5 Rb3 $11) 52... Ka7 53. Kc5 Rb3 54. c7 (54. Rxd5 Rc3+ 55. Kd4 Rxh3 $11) 54... Rc3+ 55. Kd6 (55. Kxd5 Rxc7 56. Rf8 Kb6 $17) 55... Kb7 56. Rb8+ (56. Kxd5 Kxc7 57. Ra8 Kb6 $17) 56... Ka7 57. c8=Q (57. c8=N+ $2 Kxb8 58. Ne7 a4 $19)) 51... d4 {[%emt 0:01:02] [#]} 52. Kd6 $1 {[%emt 0:06:23]} ({Not} 52. Kxd4 a4 $11) 52... Rc1 {[%emt 0:01:20] [#]} 53. Rb7+ $1 {[%emt 0:03:24]} Ka8 $2 {[%emt 0:00:25]} (53... Kc8 54. Ra7 Kb8 55. Rxa5 d3 56. Rb5+ (56. Rxf5 $2 {loses.} d2 $19) 56... Ka7) 54. Rb2 $18 {[%emt 0:01:05] Kd7 would kill now.} ({Weaker is} 54. Rb5 Ka7 $16) 54... a4 {[%emt 0:00:52]} 55. Rb4 {[%emt 0:02:49][%csl LRa4,LRd4] White mates.} d3 {[%emt 0:00:20]} 56. Kc7 {[%emt 0:00:20][%cal Rb4a4]} Rxc6+ {[%emt 0:00:55]} 57. Kxc6 {[%emt 0:00:08]} d2 {[%emt 0:00:15]} 58. Rxa4+ {[%emt 0:00:06] Weighted Error Value: White=0.22 (precise) /Black=0.44} 1-0